Cogmind - Beta 12 @@@ ROGUE MODE // 2023.03.11 @ 16:51:38 Player: Cookie Result: Self-destructed Performance ------------- Evolutions (2) 1000 Regions Visited (9) 1800 Robots Destroyed (62) 310 Value Destroyed (2313) 2313 Prototype IDs (5) 100 Alien Tech Used (0) 0 Bonus (592) 592 TOTAL SCORE: 6115 Bonus ------- High Alert Combat Kills 102 Follower Combat Kills 33 Entered Garrisons 200 Aligned with FarCom 300 Friendly Fire -43 Cogmind --------- Core Integrity 158/550 Matter 290/300 Energy 160/160 System Corruption 9% Temperature Cool (0) Movement Walking (120) Location -8/Storage Parts ------- > --- POWER (1) -------- Light Nuclear Core > --- PROPULSION (4) --- Improved Aluminum Leg Improved Aluminum Leg Improved Aluminum Leg Improved Aluminum Leg > --- UTILITY (3) ------ Improved Heat Sink Medium Storage Unit Hacking Suite > --- WEAPON (3) ------- Heavy Particle Gun Enhanced Autogun Mini Assault Cannon > --- INVENTORY (10) --- Light Nuclear Core Improved Aluminum Leg Improved Carbon-fiber Leg Improved Carbon-fiber Leg Improved Carbon-fiber Leg Improved Carbon-fiber Leg Skeleton Box Field Laser Enhanced Autogun Tiamat Bomb Trap Peak State ------------ > --- POWER ------------ Light Nuclear Core > --- PROPULSION ------- Aluminum Leg Aluminum Leg Improved Aluminum Leg Improved Aluminum Leg > --- UTILITY ---------- Medium Storage Unit Hacking Suite Skeleton Box > --- WEAPON ----------- Heavy Particle Gun Enhanced Autogun Mini Assault Cannon > --- INVENTORY -------- Aluminum Leg Aluminum Leg Improved Carbon-fiber Leg Improved Carbon-fiber Leg Improved Carbon-fiber Leg Improved Carbon-fiber Leg Cooling System Field Laser Enhanced Autogun Tiamat Bomb Trap [Rating: 34] Favorites ----------- Power Light Nuclear Core Engine Heavy Ion Engine Power Core Light Nuclear Core Propulsion Aluminum Leg Leg Aluminum Leg Wheel Armored Wheel Utility Medium Storage Unit Device Cooling System Storage Medium Storage Unit Hackware Hacking Suite Weapon Autogun Energy Gun Heavy Particle Gun Energy Cannon Beam Cannon Ballistic Gun Autogun Ballistic Cannon Mini Assault Cannon Special Weapon Mining Laser Build | -11 -10 -9 -9 -9 -8 -8 -8 -8 -8 ------- Run | Jun Mat Mat Min Exi Min Mat Gar Mat Sto Slots Evolved 4 | . . 2 . . . 2 . . . Power . | . . . . . . . . . . Propulsion 2 | . . 2 . . . . . . . Utility 1 | . . . . . . 1 . . . Weapon 1 | . . . . . . 1 . . . Parts Attached 90 | 6 9 6 1 1 . 3 24 18 22 Power 10 | 1 1 1 . . . . 3 2 2 Engine 5 | 1 1 1 . . . . 1 . 1 Core 5 | . . . . . . . 2 2 1 Reactor . | . . . . . . . . . . Propulsion 26 | 2 . 2 . . . . 9 6 7 Treads . | . . . . . . . . . . Leg 24 | 2 . 2 . . . . 7 6 7 Wheel 2 | . . . . . . . 2 . . Hover . | . . . . . . . . . . Flight . | . . . . . . . . . . Utility 21 | 1 3 1 . 1 . 2 1 1 11 Device 16 | . 2 1 . 1 . 1 1 . 10 Storage 4 | 1 1 . . . . . . 1 1 Processor . | . . . . . . . . . . Hackware 1 | . . . . . . 1 . . . Protection . | . . . . . . . . . . Artifact . | . . . . . . . . . . Weapon 33 | 2 5 2 1 . . 1 11 9 2 Energy Gun 9 | . . . . . . . 4 4 1 Energy Cannon 4 | . 2 1 . . . . . 1 . Ballistic Gun 16 | 2 2 . 1 . . 1 6 4 . Ballistic Cannon 1 | . . . . . . . . . 1 Launcher . | . . . . . . . . . . Special Weapon 3 | . 1 1 . . . . 1 . . Impact Weapon . | . . . . . . . . . . Slashing Weapon . | . . . . . . . . . . Piercing Weapon . | . . . . . . . . . . Special Melee Weapon . | . . . . . . . . . . Unidentified Prototypes 5 | . . 1 . 1 . . . 2 1 Parts Lost 17 | . . . 1 . . . 12 4 . Power 2 | . . . . . . . 1 1 . Propulsion 7 | . . . . . . . 6 1 . Utility . | . . . . . . . . . . Weapon 8 | . . . 1 . . . 5 2 . Highest Loss Streak 4 | . . . 1 . . . 3 4 . To Critical Strikes 1 | . . . 1 . . . . . . Average Slot Usage (%) 99 | . 99 100 100 100 100 100 96 99 99 Engine 6 | . 14 11 11 11 11 9 3 . 3 Core 3 | . . . . . . . 4 9 5 Leg 36 | . 28 44 44 44 44 36 33 35 35 Device 10 | . 13 11 11 11 11 9 9 9 9 Storage 10 | . 14 11 11 11 11 9 9 9 9 Hackware 5 | . . . . . . 9 9 9 9 Energy Gun 7 | . . . . . . . 10 17 9 Energy Cannon 3 | . 11 9 8 . . . . . . Ballistic Gun 13 | . 15 11 13 22 22 27 16 8 11 Ballistic Cannon 1 | . . . . . . . . . 6 Naked Turns . | . . . . . . . . . . Heaviest Build 30 | 10 22 25 25 26 26 29 30 29 30 Greatest Support 52 | 20 26 46 40 40 40 40 43 40 52 Greatest Overweight (x) 2 | 1 1 . . . . . 2 1 1 Average Overweight (x) . | . . . . . . . . . . Largest Inventory Capacity 10 | 8 10 10 10 10 10 10 10 10 10 Average Capacity 9 | 7 8 10 10 10 10 10 10 10 10 Most Carried 10 | 5 10 10 10 10 10 9 10 10 10 Average Carried 9 | 2 7 9 9 9 10 7 9 8 9 Final Capacity 10 | 8 10 10 10 10 10 10 10 10 10 Final Carried 10 | 4 10 10 9 10 10 7 10 10 10 Class Distribution -------------------- 47% | Scavenger-Skirmisher 32% | Mutant 10% | Scavenger-Mutant 8% | Skirmisher Dominant Class ---------------- Mutant | -10/Materials Scavenger-Mutant | -9/Materials Mutant | -9/Mines Mutant | -9/Exiles Mutant | -8/Mines Scavenger-Skirmisher | -8/Materials Scavenger-Skirmisher | -8/Garrison Scavenger-Skirmisher | -8/Materials Scavenger-Skirmisher | -8/Storage Resources | -11 -10 -9 -9 -9 -8 -8 -8 -8 -8 ----------- Run | Jun Mat Mat Min Exi Min Mat Gar Mat Sto Matter Collected 2209 | 177 146 . 198 . . . 812 184 692 Remotely . | . . . . . . . . . . Salvage Created 2410 | . 127 . 132 . . . 1140 380 631 Parts 127 | . 15 . 12 . . . 50 18 32 Haulers Intercepted 4 | . 1 . . . . . . 2 1 Recyclers Shooed . | . . . . . . . . . . Parts Field Recycled . | . . . . . . . . . . Retrieved Matter . | . . . . . . . . . . Parts Self-Destructed . | . . . . . . . . . . Prevented . | . . . . . . . . . . Kills | -11 -10 -9 -9 -9 -8 -8 -8 -8 -8 ------- Run | Jun Mat Mat Min Exi Min Mat Gar Mat Sto Combat Hostiles Destroyed 52 | . 1 . 9 . . . 25 5 12 Guns 46 | . . . 8 . . . 25 4 9 Cannons 5 | . 1 . 1 . . . . . 3 AOE 1 | . . . . . . . . 1 . Classes Destroyed 11 | . 5 . 1 . . . 4 1 . Builder 2 | . 1 . . . . . . . 1 Tunneler 1 | . 1 . . . . . . . . Hauler 4 | . 1 . . . . . . 2 1 Operator 2 | . 1 . . . . . . . 1 Watcher 1 | . . . . . . . . 1 . Swarmer 12 | . . . 9 . . . 3 . . Grunt 21 | . 1 . . . . . 12 2 6 Duelist 2 | . . . . . . . 1 . 1 Sentry 13 | . . . . . . . 6 2 5 Hunter 3 | . . . . . . . 2 1 . Programmer 1 | . . . . . . . 1 . . Best Kill Streak 5 | . 1 . 4 . . . 4 5 5 Combat Bots Only 5 | . 1 . 4 . . . 4 4 5 Max Kills in Single Turn 2 | . 1 . 1 . . . 2 1 1 Gunslinging 1 | . . . . . . . 1 . . Exploded 1 | . . . . . . . . 1 . Melee . | . . . . . . . . . . Uniques/NPCs Destroyed . | . . . . . . . . . . Combat | -11 -10 -9 -9 -9 -8 -8 -8 -8 -8 -------- Run | Jun Mat Mat Min Exi Min Mat Gar Mat Sto Damage Taken 3519 | . 90 22 245 . . . 1947 733 482 Core 456 | . 12 10 42 . . . 198 166 28 Absorbed by Shields . | . . . . . . . . . . Regen/Repaired (Parts) 73 | . . . . . . . . . 73 Core Remaining (%) 94 | 100 95 . . . 87 . . . . Volleys Fired 192 | . 19 13 21 . . . 84 13 42 Largest 3 | . 2 1 2 . . . 3 3 3 Hottest 172 | . 100 100 83 . . . 153 172 128 Shots Fired 479 | . 33 13 41 . . . 229 39 124 Gun 405 | . 14 . 30 . . . 222 37 102 Cannon 51 | . 16 . 11 . . . . 2 22 Launcher . | . . . . . . . . . . Special 23 | . 3 13 . . . . 7 . . Kinetic 288 | . 14 . 30 . . . 151 11 82 Thermal 180 | . 19 13 11 . . . 78 17 42 Explosive . | . . . . . . . . . . Electromagnetic 11 | . . . . . . . . 11 . Robot Hit Streak 22 | . 7 . 5 . . . 13 18 22 Robot Miss Streak 6 | . 3 . 3 . . . 4 1 6 Penetration Max 1 | . . . . . . . 1 . . Secondary Targets 13 | . . . 3 . . . 8 2 . Max Gunslinging Chain 1 | . . . 1 . . . 1 1 . Shots Hit Robots 298 | . 17 . 23 . . . 150 30 78 Core Hits 109 | . 7 . 9 . . . 54 13 26 Critical Kills . | . . . . . . . . . . Critical Parts Destroyed 4 | . . . . . . . 2 . 2 Critical Strikes 9 | . . . . . . . 5 2 2 Burn 5 | . . . . . . . 3 2 . Destroy 4 | . . . . . . . 2 . 2 Melee Attacks . | . . . . . . . . . . Impact . | . . . . . . . . . . Slashing . | . . . . . . . . . . Piercing . | . . . . . . . . . . Sneak Attacks . | . . . . . . . . . . Combat Hostiles . | . . . . . . . . . . Follow-up Attacks . | . . . . . . . . . . Damage Inflicted 5376 | . 276 . 367 . . . 2414 700 1619 Guns 4565 | . 118 . 282 . . . 2414 509 1242 Cannons 642 | . 158 . 85 . . . . 22 377 Explosions 169 | . . . . . . . . 169 . Melee . | . . . . . . . . . . Ramming . | . . . . . . . . . . Kinetic 3283 | . 118 . 282 . . . 1725 146 1012 Thermal 1875 | . 158 . 85 . . . 689 336 607 Explosive . | . . . . . . . . . . Electromagnetic 218 | . . . . . . . . 218 . Impact . | . . . . . . . . . . Slashing . | . . . . . . . . . . Piercing . | . . . . . . . . . . Highest Corruption 9 | . . . . . . . . 7 9 Average Corruption 7 | . . . . . . . . 7 7 Corruption Purged . | . . . . . . . . . . Corruption Blocked . | . . . . . . . . . . Effects 53 | . . . . . . . . 3 50 Message Errors 9 | . . . . . . . . 1 8 Matter Fused 13 | . . . . . . . . . 13 Heat Flow Errors 7 | . . . . . . . . . 7 Energy Discharges 6 | . . . . . . . . . 6 Data Loss (minor) 7 | . . . . . . . . 1 6 Data Loss (major) 5 | . . . . . . . . 1 4 Misfires 1 | . . . . . . . . . 1 Alerts 2 | . . . . . . . . . 2 Weapon Failures 3 | . . . . . . . . . 3 Overload Shots . | . . . . . . . . . . Overflow Damage 30 | . . . . . . . . 20 10 Projectiles 10 | . . . . . . . . . 10 Explosions 20 | . . . . . . . . 20 . Melee . | . . . . . . . . . . Knockbacks 2 | . . . . . . . . . 2 Impact . | . . . . . . . . . . Kinetic 2 | . . . . . . . . . 2 Secondary . | . . . . . . . . . . Self-Inflicted Damage 60 | . . . . . . . . 60 . Shots 2 | . . . . . . . . 2 . Rammed . | . . . . . . . . . . Targets Rammed . | . . . . . . . . . . Kicked . | . . . . . . . . . . Crushed . | . . . . . . . . . . Highest Temperature 252 | . 150 8 87 . . . 122 66 252 Average Temperature 36 | . 41 5 32 . . . 32 25 54 Received Heat Transfer 1089 | . 42 12 . . . . 594 171 270 Siege Activations . | . . . . . . . . . . Robots Corrupted . | . . . . . . . . . . Combat Hostiles . | . . . . . . . . . . Parts Fried 1 | . . . . . . . . 1 . Impact Corruptions . | . . . . . . . . . . Robots Melted . | . . . . . . . . . . Combat Hostiles . | . . . . . . . . . . Parts Melted 9 | . . . . . . . 4 2 3 Heat Transferred 4307 | . 333 . 185 . . . 1850 755 1184 Parts Sabotaged . | . . . . . . . . . . Parts Stolen . | . . . . . . . . . . Parts Stripped . | . . . . . . . . . . Power Chain Reactions 3 | . . . . . . . . 3 . Missiles Intercepted . | . . . . . . . . . . Alert | -11 -10 -9 -9 -9 -8 -8 -8 -8 -8 ------- Run | Jun Mat Mat Min Exi Min Mat Gar Mat Sto Peak Influence 765 | . 72 51 174 . . . 765 393 238 Initial 358 | . . 2 19 . . . . 358 31 Average 132 | . 32 16 74 . . . 308 213 74 Maximum Alert Level 3 | . . . . . . . 3 1 1 Low Security (%) 77 | 100 100 100 100 . 100 100 35 66 86 Level 1 15 | . . . . . . . 30 33 13 Level 2 5 | . . . . . . . 28 . . Level 3 1 | . . . . . . . 5 . . Level 4 . | . . . . . . . . . . Level 5 . | . . . . . . . . . . High Security . | . . . . . . . . . . Max Security . | . . . . . . . . . . Squads Dispatched 2 | . 1 1 . . . . . . . Investigation 1 | . . 1 . . . . . . . Extermination . | . . . . . . . . . . Reinforcement 1 | . 1 . . . . . . . . Assault . | . . . . . . . . . . Garrison . | . . . . . . . . . . Intercept . | . . . . . . . . . . Searches Triggered . | . . . . . . . . . . Construction Impeded . | . . . . . . . . . . Haulers Reinforced . | . . . . . . . . . . Active Scanning Responses . | . . . . . . . . . . Cargo Convoy Interrupts . | . . . . . . . . . . Stealth | -11 -10 -9 -9 -9 -8 -8 -8 -8 -8 --------- Run | Jun Mat Mat Min Exi Min Mat Gar Mat Sto Distress Signals 6 | . 1 2 . . . . . 1 2 Communications Jammed . | . . . . . . . . . . Distress Signals . | . . . . . . . . . . Times Spotted 73 | . 6 6 12 . . . 28 7 14 Peak Tracking Total 5 | . 4 4 4 . . . 5 4 4 Tactical Retreats 8 | . 1 1 2 . . . 3 . 1 Traps | -11 -10 -9 -9 -9 -8 -8 -8 -8 -8 ------- Run | Jun Mat Mat Min Exi Min Mat Gar Mat Sto Traps Triggered 6 | . 1 1 . . . . 3 . 1 Indirectly . | . . . . . . . . . . Trap Hack Attempts . | . . . . . . . . . . Triggered . | . . . . . . . . . . Disarmed . | . . . . . . . . . . Reprogrammed . | . . . . . . . . . . Reused 2 | . . . . . . . 2 . . Traps Extracted . | . . . . . . . . . . Installed 2 | . . . . . . . 2 . . Triggered 2 | . . . . . . . 2 . . Most Traps Carried 2 | . . . . . . . 2 1 1 Machines | -11 -10 -9 -9 -9 -8 -8 -8 -8 -8 ---------- Run | Jun Mat Mat Min Exi Min Mat Gar Mat Sto Machines Disabled 4 | . . . . . . . 1 1 2 Max in Single Turn 1 | . . . . . . . 1 1 1 Garrison Access 1 | . . . . . . . . . 1 Garrison Relay 1 | . . . . . . . 1 . . Machines Repaired . | . . . . . . . . . . Machines Sabotaged . | . . . . . . . . . . Overloaded Fab Kills . | . . . . . . . . . . Hacking | -11 -10 -9 -9 -9 -8 -8 -8 -8 -8 --------- Run | Jun Mat Mat Min Exi Min Mat Gar Mat Sto Machines Accessed 27 | . 4 5 . 3 . 1 1 7 6 Terminals 18 | . 4 3 . . . . 1 6 4 Fabricators . | . . . . . . . . . . Repair Stations 1 | . . . . . . . . . 1 Recycling Units 1 | . . 1 . . . . . . . Scanalyzers 1 | . . 1 . . . . . . . Garrison Access 3 | . . . . . . 1 . 1 1 Total Hacks 83 | . 13 19 . 3 . 2 2 24 20 Successful 50 | . 6 12 . 3 . 1 . 16 12 Failed 33 | . 7 7 . . . 1 2 8 8 Catastrophic 6 | . 3 1 . . . . 1 . 1 Database Lockouts . | . . . . . . . . . . Manual 43 | . 6 9 . 1 . . . 14 13 Terminals 61 | . 13 10 . . . . 2 22 14 Fabricators . | . . . . . . . . . . Repair Stations 5 | . . . . . . . . . 5 Recycling Units 2 | . . 2 . . . . . . . Scanalyzers 7 | . . 7 . . . . . . . Garrison Access 5 | . . . . . . 2 . 2 1 Terminal Hacks 23 | . 4 2 . 3 . . . 11 3 Record 3 | . . . . 3 . . . . . Part Schematic 1 | . . . . . . . . 1 . Branch Access Points 2 | . . . . . . . . 1 1 Emergency Access Points 1 | . . . . . . . . 1 . Terminal Index 4 | . 1 1 . . . . . 1 1 Alert Level 1 | . . . . . . . . 1 . Locate Traps 3 | . 2 . . . . . . 1 . Patrol Status 1 | . . . . . . . . 1 . Transport Status 2 | . . 1 . . . . . 1 . Investigation Status 1 | . . . . . . . . 1 . Hauler Manifests 1 | . . . . . . . . . 1 Zone Layout 3 | . 1 . . . . . . 2 . Fabricator Hacks . | . . . . . . . . . . Repair Station Hacks 4 | . . . . . . . . . 4 Scan Component 2 | . . . . . . . . . 2 Repair 2 | . . . . . . . . . 2 Recycling Unit Hacks 1 | . . 1 . . . . . . . Retrieve Components 1 | . . 1 . . . . . . . Scanalyzer 7 | . . 7 . . . . . . . Insert Component 3 | . . 3 . . . . . . . Analyze 4 | . . 4 . . . . . . . Garrison Access Hacks 2 | . . . . . . 1 . . 1 Unlock Access 1 | . . . . . . 1 . . . Seal Access 1 | . . . . . . . . . 1 Unauthorized Hacks 13 | . 2 2 . . . . . 5 4 Terminals 13 | . 2 2 . . . . . 5 4 Assimilate 1 | . . . . . . . . 1 . Botnet 12 | . 2 2 . . . . . 4 4 Fabricators . | . . . . . . . . . . Repair Stations . | . . . . . . . . . . Recycling Units . | . . . . . . . . . . Scanalyzers . | . . . . . . . . . . Garrison Access . | . . . . . . . . . . Data Cores Recovered 2 | . 1 . . . . . . . 1 Used . | . . . . . . . . . . Hacking Detections 22 | . 4 4 . . . 1 1 7 5 Full Trace Events 1 | . . . . . . . 1 . . Feedback Events . | . . . . . . . . . . Feedback Blocked . | . . . . . . . . . . Robot Schematics Acquired . | . . . . . . . . . . Robots Built . | . . . . . . . . . . Authchips . | . . . . . . . . . . Time . | . . . . . . . . . . Total Robot Build Rating . | . . . . . . . . . . Part Schematics Acquired 3 | . . 3 . . . . . . . Parts Built . | . . . . . . . . . . Authchips . | . . . . . . . . . . Time . | . . . . . . . . . . Total Part Build Rating . | . . . . . . . . . . Parts Repaired 2 | . . . . . . . . . 2 Time 70 | . . . . . . . . . 70 Parts Recycled . | . . . . . . . . . . Recycled Matter . | . . . . . . . . . . Retrieved Matter . | . . . . . . . . . . Retrieved Components . | . . . . . . . . . . Parts Scanalyzed 3 | . . 3 . . . . . . . Part Schematics Acquired 3 | . . 3 . . . . . . . Parts Damaged . | . . . . . . . . . . Bothacking | -11 -10 -9 -9 -9 -8 -8 -8 -8 -8 ------------ Run | Jun Mat Mat Min Exi Min Mat Gar Mat Sto Used RIF Installer . | . . . . . . . . . . Robots Hacked . | . . . . . . . . . . Non-combat . | . . . . . . . . . . Combat . | . . . . . . . . . . Robot Hacks Applied . | . . . . . . . . . . Relay Couplers Released 7 | . . . . . . . 7 . . Machine Destruction 3 | . . . . . . . 3 . . Programmers 4 | . . . . . . . 4 . . Fabnet Peak Effective % . | . . . . . . . . . . Robots Rewired . | . . . . . . . . . . Allies Hacked . | . . . . . . . . . . Hacks Repelled . | . . . . . . . . . . Allies | -11 -10 -9 -9 -9 -8 -8 -8 -8 -8 -------- Run | Jun Mat Mat Min Exi Min Mat Gar Mat Sto Total Allies 11 | . . . . . . . . 1 10 Largest Group 10 | . . . . . . . . 1 10 Highest-Rated Group 173 | . . . . . . . . 10 173 Highest-Rated Ally 29 | . . . . . . . . 10 29 Total Orders 4 | . . . . . . . . 1 3 STAY 1 | . . . . . . . . 1 . EXPLORE 3 | . . . . . . . . . 3 Ally Attacks 3 | . . . . . . . . . 3 Total Damage 49 | . . . . . . . . . 49 Kills 1 | . . . . . . . . . 1 Allies Corrupted . | . . . . . . . . . . Allies Melted . | . . . . . . . . . . Intel | -11 -10 -9 -9 -9 -8 -8 -8 -8 -8 ------- Run | Jun Mat Mat Min Exi Min Mat Gar Mat Sto Robot Analysis Total . | . . . . . . . . . . Derelict Logs Recovered . | . . . . . . . . . . Drone Launches 3 | . . . . . . . . . 3 Drone Recoveries 2 | . . . . . . . . . 2 Exploration | -11 -10 -9 -9 -9 -8 -8 -8 -8 -8 ------------- Run | Jun Mat Mat Min Exi Min Mat Gar Mat Sto Turns Passed 6714 | 63 943 659 516 416 196 33 1271 1207 1410 Spaces Moved 3237 | 45 466 239 330 345 58 25 721 537 471 Core 12 | 12 . . . . . . . . . Treads . | . . . . . . . . . . Legs 3220 | 33 466 239 330 345 58 25 716 537 471 Wheels 5 | . . . . . . . 5 . . Hover . | . . . . . . . . . . Flight . | . . . . . . . . . . Fastest Speed 50 | 50 120 120 120 120 120 120 120 120 120 Average Speed 120 | 105 120 120 120 120 120 120 120 120 120 Slowest Speed 190 | 120 190 120 120 120 120 120 190 190 190 Overloaded Moves . | . . . . . . . . . . Propulsion Burnouts . | . . . . . . . . . . Robots Hopped . | . . . . . . . . . . Cave-ins Triggered 1 | . . . . . . . . 1 . Exploration Rate (%) 39 | 4 52 24 76 71 15 6 55 33 58 Regions Visited 9 Branch Regions 4 Pre-discovered Areas . | . . . . . . . . . . Known Exits Taken 2 | . . . . . . 1 . 1 . Unknown Exits Taken 6 | 1 1 1 1 1 1 . . . . Scrap Searched 3 | . . . 3 . . . . . . Spaces Dug 16 | . 3 13 . . . . . . . Terrain Destroyed 35 | . 3 13 . . . . . 12 7 Melee . | . . . . . . . . . . Projectile 25 | . 3 13 . . . . . 2 7 AOE 10 | . . . . . . . . 10 . Terrain Rammed . | . . . . . . . . . . Walls Destroyed . | . . . . . . . . . . Machines Disabled . | . . . . . . . . . . Actions | -11 -10 -9 -9 -9 -8 -8 -8 -8 -8 --------- Run | Jun Mat Mat Min Exi Min Mat Gar Mat Sto Total 5674 | 60 809 572 415 346 184 29 948 1071 1240 Wait 2005 | . 295 306 62 . 127 . 59 476 680 Move 3228 | 44 465 238 329 344 57 24 720 536 471 Hop . | . . . . . . . . . . Pick Up 81 | 10 13 5 1 1 . . 28 16 7 Fast Attach 20 | . 1 1 . . . . 2 3 13 Attach 44 | 6 1 2 1 . . 3 19 11 1 Detach 4 | . . . . . . 1 3 . . Swap 26 | . 7 3 . 1 . . 3 4 8 Drop 62 | . 8 4 1 . . 1 18 12 18 Fire 192 | . 19 13 21 . . . 84 13 42 Melee . | . . . . . . . . . . Ram . | . . . . . . . . . . Kick . | . . . . . . . . . . Crush . | . . . . . . . . . . Escape Stasis 10 | . . . . . . . 10 . . Rewire . | . . . . . . . . . . Trap 2 | . . . . . . . 2 . . Miscellaneous . | . . . . . . . . . . Route ------- -11/Junkyard -10/Materials (discovered 2 exits: *Mat x2) -9/Materials -9/Mines (discovered 3 exits: *Mat x2 / *Exi) -9/Exiles (discovered 2 exits: [*Min x2]) -8/Mines -8/Materials -8/Garrison (discovered 2 exits: *Mat x2) -8/Materials (discovered 2 exits: [*Fac] / *Sto) -8/Storage (discovered 1 exit: Rec) History --------- Turn | Location | Event 17 | -11/Junkyard | Discovered new exit (range 15) 64 | -11/Junkyard | Entered Materials 318 | -10/Materials | Build established: Mutant 781 | -10/Materials | Discovered new exit (range 16) 988 | -10/Materials | Discovered new exit (range 12) 1007 | -10/Materials | Entered another Materials area 1007 | -9/Materials | Evolved 2 slots: Propulsion x2 1307 | -9/Materials | Build established: Scavenger-Mutant 1639 | -9/Materials | Discovered new exit (range 7) 1666 | -9/Materials | Entered Mines 1734 | -9/Mines | Discovered new exit (range 8) 1946 | -9/Mines | Build established: Mutant 2130 | -9/Mines | Discovered new exit (range 9) 2177 | -9/Mines | Deemed a non-threat by the Exiles lab entrance 2177 | -9/Mines | Discovered new exit (range 5) 2182 | -9/Mines | Entered Exiles 2209 | -9/Exiles | Discovered new exit (range 15) 2223 | -9/Exiles | Met 8R-AWN 2244 | -9/Exiles | Met EX-HEX 2355 | -9/Exiles | Met EX-BIN 2374 | -9/Exiles | Aligned with FarCom system 2376 | -9/Exiles | Given EX-Vault access code 2428 | -9/Exiles | Opened EX-Vault 2436 | -9/Exiles | Found Prototype Device 2437 | -9/Exiles | Identified Skeleton Box 2463 | -9/Exiles | Warned to stay clear of 0b10 Research branches 2496 | -9/Exiles | Met EX-DEC 2583 | -9/Exiles | Discovered new exit (range 14) 2598 | -9/Exiles | Left Exiles lab with Skeleton Box 2598 | -9/Exiles | Entered Mines 2783 | -8/Mines | Discovered new exit (range 9) 2794 | -8/Mines | Entered Materials 2794 | -8/Materials | Evolved 2 slots: Utility x1, Weapon x1 2826 | -8/Materials | Identified exit to Garrison 2827 | -8/Materials | Entered Garrison 2928 | -8/Garrison | Triggered checkpoint 3124 | -8/Garrison | Build established: Scavenger-Skirmisher 3410 | -8/Garrison | Lost 3 parts (1p1n1w) 3492 | -8/Garrison | Triggered checkpoint 3564 | -8/Garrison | Discovered new exit (range 10) 3636 | -8/Garrison | Triggered checkpoint 3796 | -8/Garrison | Triggered checkpoint 3916 | -8/Garrison | Discovered new exit (range 11) 3970 | -8/Garrison | Triggered checkpoint 4030 | -8/Garrison | Garrison Relay disabled 4098 | -8/Garrison | Entered Materials 4123 | -8/Materials | Lost 3 parts (1n2w) 4279 | -8/Materials | Identified exit to Storage 4775 | -8/Materials | Discovered new exit (range 16) 5233 | -8/Materials | Crushed by falling debris 5233 | -8/Materials | Core integrity fell below 50% 5264 | -8/Materials | Lost 4 parts (1p1n2w) 5305 | -8/Materials | Entered Storage 5428 | -8/Storage | Remotely autohacked Sealed Heavy Doors 5736 | -8/Storage | Remotely autohacked Sealed Heavy Doors 5913 | -8/Storage | Remotely autohacked Sealed Heavy Doors 6032 | -8/Storage | Repaired Lgt. Nuclear Core 6074 | -8/Storage | Repaired Imp. Aluminum Leg 6345 | -8/Storage | Build established: Skirmisher 6604 | -8/Storage | Identified exit to Recycling 6608 | -8/Storage | Assisted by bots powering up and referring to "LRC-V3" 6715 | -8/Storage | Self-destructed Last Messages --------------- 06677_ K-01 Serf collects debris. 06680_ System corrupted: Substantial component data lost. 06681_ Acquired 5 matter. 06681_ K-01 Serf collects debris. 06685_ Acquired 12 matter. 06693_ Triggered Shock Trap. 06693_ The floor emits a surge of raw power. 06693_ System corrupted (+2). 06695_ Trooper 3f triggered Shock Trap. 06695_ The floor emits a surge of raw power. 06697_ Trooper 3i triggered Shock Trap. 06697_ The floor emits a surge of raw power. 06699_ Trooper 3g triggered Shock Trap. 06699_ The floor emits a surge of raw power. 06700_ Dropped Field Laser. 06702_ Acquired Med. Storage Unit. 06702_ U-05 Engineer lays Concrete. 06705_ Dropped Med. Storage Unit. 06706_ U-05 Engineer lays Concrete. 06706_ Acquired Field Laser. Map ----- +----------------------------------------------------+ | ??????????????????????????????????????? | | ??????#####???????????????????????????? | | ??????# ############################# | | ??????# # | | ??????# + | | ??????# # | | ??????# T#############+############### | | ??????#####?????# #???????? | | ????????????????# #???????? | | ????????????????# #???????? | | ????????????????# #???????? | | ???????????>????# == #???????? | | ????????????????# =[ [ #???????? | | ????????????????####/#####/####???????? | | ?????????????????# ####[######?????? | | ?????????????????# %* ==! #?????? | | ?????????????????# +?????? | | ?????????????????# ######### #?????? | | ??????????#??????## ##?????????#?????? | | ??????????+ ??????# #?????????????#### | | ??????????# ??????# #?????????????# | | ??????????# ?????# #?????????????# | | ??????????# ###### ##????????????# | | ??????????# #????????????# | | ??????????# g g #????????????#""" | | ??????????# g@ #????????????#"R | | ??????????# gg gg! u #????????????#""" | | ??????????# g g* ##????????????# | | ??????????# g *! #????????????##### | | ?????????# #????????????# | | ?????????# #????????????# | | ?????????# +???????????# | | ?????????# #########???????????##### | | ?????????##+##????????????????????????? | | ???????Y????????????????????????????### | | ????????????????????????????????????#!! | | ????????????????????????????????????#!! | | ????????????????????????????????????#!! | | ????????????????????????????????????### | | ??????????????????????????????????????? | | ??????????????????????????????????????? | | ??????????????????????????????????????? | | ??????????????????????????????????????? | | ??????????????????????????????????????? | | ??????????????????????????????????????? | | ??????????????????????????????????????? | | ??????????????????????????????????????? | | ??????????????????????????????????????? | | ??????????????????????????????????????? | | ??????????????????????????????????????? | +----------------------------------------------------+ Best States ------------- Heat Dissipation 53 Energy Generation 14 Energy Capacity 280 Matter Stores 300 Matter Capacity 300 Sight Range 16 Robot Scan Range 14 Terrain Scan Density 10 Additional Mass Support 6 Evasion (%) 55 Offensive Hacking 10 Item Schematics ----------------- Imp. Aluminum Leg | -9/Materials | Scanalyzed Arm. Wheel | -9/Materials | Scanalyzed ECM Suite | -9/Materials | Scanalyzed Robot Schematics ------------------ None Fabricated ------------ Nothing Alien Tech Used ----------------- None Achievements -------------- None Challenges ------------ None Game ------ Seed CooledArmoredMount Manual? 0 Play Time 01:21:58 Cumulative 65.2 hours Start 2023.03.08 @ 15:47:31 End 2023.03.11 @ 16:51:38 Sessions 3 Manual Loads 0 Difficulty Rogue Special Mode None Game No. 111 Rogue 111 Adventurer 0 Explorer 0 Win Type - Total 1 Types 1/0/0/0/0/0/0/0/0 Lore% 38 Gallery% 36 Achievement% 36 Wizard Run 0 Options --------- ASCII 0 Keyboard 0 Movement Mouse Keybinds 0 Fullscreen 1 Font 18/SmallcapsGlow Map View 76x50 Tactical HUD 1 Map Filters NONE Filters NONE Steam 1 RUN: 9499eaed-28a8-4a7d-b45f-c581ca193b4f